fUSD/lending_fUSD_20250302
["ID","MTS","AMOUNT","RATE_DAILY","PERIOD"]
[355175917,1740945065274,-1000.0,0.00029,2]
[355175918,1740945065284,-1000.0,0.00029,2]
[355175919,1740945065294,-1000.0,0.00029,2]
[355175920,1740945065304,-5000.42488189,0.00029,2]
[355175921,1740945065314,-9041.96938029,0.00029,5]
[355175922,1740945065324,-1000.0,0.00029,2]
[355175923,1740945065335,-163.036319,0.00029,15]
[355175924,1740945065345,-1003.05722567,0.00029,4]
[355175925,1740945065355,-52136.84961992,0.00029,2]
[355175926,1740945065366,-3867.75,0.00029,3]
[355175927,1740945065375,-19667.36438949,0.00029,2]
[355175928,1740945065385,-2660.51,0.0002904,2]
[355175929,1740945065396,-151.0,0.0002904,7]
[355175930,1740945065405,-1159.76,0.0002904,2]
[355175931,1740945065416,-1059.43,0.0002904,2]
[355175932,1740945065431,-708.05,0.0002904,2]
[355175933,1740945065440,-353.917026,0.00029041,2]
[355175934,1740945065450,-199.496843,0.00029041,2]
[355175935,1740945065461,-500.0,0.00029041,2]
[355175936,1740945065471,-500.0,0.00029041,2]
[355175937,1740945065480,-500.0,0.00029041,2]
[355175938,1740945065490,-500.0,0.00029041,2]
[355175939,1740945065504,-719.73,0.00029041,2]
[355175940,1740945065514,-500.0,0.00029041,2]
[355175941,1740945065524,-500.0,0.00029041,2]
[355175942,1740945065534,-1093.93,0.00029041,2]
[355175943,1740945065545,-505.66,0.00029041,2]
[355175944,1740945065556,-500.0,0.00029041,2]
[355175945,1740945065566,-500.0,0.00029041,2]
[355175946,1740945065576,-500.0,0.00029041,2]
[355175947,1740945065589,-621.60519908,0.00029041,2]
[355175948,1740945065600,-594.96,0.00029041,2]
[355175949,1740945065610,-593.0,0.00029041,2]
[355175950,1740945065693,-650.42,0.00029041,2]
[355175951,1740945065704,-559.89,0.00029041,2]
[355175952,1740945065715,-500.0,0.00029041,2]
[355175953,1740945065725,-500.0,0.00029041,2]
[355175954,1740945065735,-500.0,0.00029041,2]
[355175955,1740945065744,-749.59,0.00029041,2]
[355175956,1740945065755,-500.0,0.00029041,2]
[355175957,1740945065765,-500.0,0.00029041,2]
[355175958,1740945065775,-857.63,0.00029041,2]
[355175959,1740945065784,-500.0,0.00029041,2]
[355175960,1740945065794,-536.7,0.00029041,2]
[355175961,1740945065803,-500.0,0.00029041,2]
[355175962,1740945065813,-506.49,0.00029041,2]
[355175963,1740945065824,-901.77,0.00029041,2]
[355175964,1740945065834,-2877.75,0.00029041,2]
[355175965,1740945065845,-509.96,0.00029041,2]
[355175966,1740945065855,-785.07,0.00029041,2]
[355175967,1740945065864,-500.0,0.00029041,2]
[355175968,1740945065875,-500.0,0.00029041,2]
[355175969,1740945065884,-708.74,0.00029041,2]
[355175970,1740945065895,-500.0,0.00029041,2]
[355175971,1740945065905,-2022.86,0.00029041,2]
[355175972,1740945065916,-1256.49,0.00029041,2]
[355175973,1740945065925,-500.0,0.00029041,2]
[355175974,1740945065934,-283.79852088,0.00029041,2]
[355175975,1740945065944,-500.0,0.00029041,2]
[355175976,1740945065954,-5610.36,0.00029041,2]
[355175977,1740945065963,-500.0,0.00029041,2]
[355175978,1740945065973,-542.2,0.00029041,2]
[355175979,1740945065983,-866.41,0.00029041,2]
[355175980,1740945065993,-500.0,0.00029041,2]
[355175981,1740945066002,-500.0,0.00029041,2]
[355175982,1740945066013,-500.0,0.00029041,2]
[355175983,1740945066022,-950.68,0.00029041,2]
[355175984,1740945066032,-667.13,0.00029041,2]
[355175985,1740945066042,-554.27,0.00029041,2]
[355175986,1740945066051,-705.18,0.00029041,2]
[355175987,1740945066061,-787.64,0.00029041,2]
[355175988,1740945066071,-500.01,0.00029041,2]
[355175989,1740945066081,-564.21,0.00029041,2]
[355175990,1740945066090,-760.26,0.00029041,2]
[355175991,1740945066099,-1360.86,0.00029041,2]
[355175992,1740945066109,-591.86,0.00029041,2]
[355175993,1740945066119,-589.01,0.00029041,2]
[355175994,1740945066129,-489.47,0.00029041,2]
[355175995,1740945066139,-540.25,0.00029041,2]
[355175996,1740945066148,-921.01,0.00029041,2]
[355175997,1740945066158,-721.37,0.00029041,2]
[355175998,1740945066167,-682.59,0.00029041,2]
[355175999,1740945066177,-894.13,0.00029041,2]
[355176000,1740945066187,-768.63,0.00029041,2]
[355176001,1740945066195,-834.9,0.00029041,2]
[355176002,1740945066205,-1090.72,0.00029041,2]
[355176003,1740945066215,-680.75,0.00029041,2]
[355176004,1740945066225,-500.0,0.00029041,2]
[355176005,1740945066234,-573.01,0.00029041,2]
[355176006,1740945066244,-500.0,0.00029041,2]
[355176007,1740945066254,-256.49519967,0.00029064,2]
[355176008,1740945066264,-151.0,0.00029064,7]
[355176009,1740945066273,-408.07391306,0.00029095,2]
[355176010,1740945066282,-556.506965,0.00029095,7]
[355176011,1740945066292,-556.506965,0.00029095,7]
[355176012,1740945066302,-494.59120575,0.00029095,2]
[355176013,1740945066311,-223.24551892,0.00029095,5]
[355176014,1740945066320,-184.50268799,0.00029095,2]
[355176015,1740945066331,-408.07391306,0.00029095,2]
[355176016,1740945066340,-494.59120575,0.00029096,2]
[355176017,1740945066349,-408.07391306,0.00029096,2]
[355176018,1740945066359,-408.07391306,0.00029096,2]
[355176019,1740945066368,-151.0,0.00029096,7]
[355176020,1740945066378,-1354.58279323,0.00029096,2]
[355176021,1740945066387,-8243.27344855,0.00029096,2]
[355176022,1740945066396,-494.59120575,0.00029096,2]
[355176023,1740945066405,-300.238277,0.00029096,7]
[355176024,1740945066419,-300.238277,0.00029096,7]
[355176025,1740945066428,-184.50268798,0.00029096,2]
[355176026,1740945066437,-174.04451006,0.00029096,2]
[355176027,1740945066447,-202.5,0.0002915,30]
[355176028,1740945066459,-3669.5780746,0.00029158,7]
[355176029,1740945066477,-150.5,0.0002916,30]
[355176030,1740945066496,-151.0,0.00029162,7]
[355176031,1740945066509,-222.02114,0.00029162,7]
[355176032,1740945066521,-369.49239519,0.00029164,30]
[355176033,1740945066531,-369.49239519,0.00029164,30]
[355176034,1740945066540,-52682.74421347,0.00029164,30]
[355176035,1740945066550,-52682.74421347,0.00029164,30]
[355176036,1740945066559,-52682.74421347,0.00029164,30]
[355176037,1740945066569,-176.88253991,0.00029164,30]
[355176038,1740945066579,-151.0,0.00029164,7]
[355176039,1740945066590,-153.16253,0.00029164,7]
[355176040,1740945066600,-151.0,0.00029164,7]
[355176041,1740945066609,-151.0,0.00029164,7]
[355176042,1740945066619,-151.0,0.00029164,7]
[355176043,1740945066629,-1584.508964,0.00029164,7]
[355176044,1740945066639,-1584.508964,0.00029164,7]
[355176045,1740945066648,-191.279951,0.00029164,7]
[355176046,1740945066658,-1944.84437666,0.00029176,5]
[355176047,1740945066667,-9616.1019028,0.00029176,2]
[355176048,1740945066677,-8143.0826576,0.00029176,2]
[355176049,1740945066687,-556.506965,0.00029176,7]
[355176050,1740945066697,-556.506965,0.00029176,7]
[355176051,1740945066707,-21234.8139546,0.00029176,2]
[355176052,1740945066717,-17982.0104861,0.00029176,2]
[355176053,1740945066726,-150.0,0.00029178,2]
[355176054,1740945066736,-358.51489501,0.00029185,2]
[355176055,1740945066747,-358.51489501,0.00029186,2]
[355176056,1740945066757,-19000.0,0.0002919,120]
[355176057,1740945066768,-300.0,0.00029194,10]
[355176058,1740945066777,-666.0,0.00029194,10]
[355176059,1740945066787,-300.0,0.00029194,10]
[355176060,1740945066797,-666.0,0.00029194,10]
[355176061,1740945066807,-1277.45247476,0.00029194,3]
[355176062,1740945066816,-928992.77416199,0.00029194,3]
[355176063,1740945066826,-100000.0,0.00029195,11]
[355176064,1740945066838,-100000.0,0.00029195,10]
[355176065,1740945066848,-100000.0,0.00029195,9]
[355176066,1740945066858,-100000.0,0.00029195,8]
[355176067,1740945066868,-100000.0,0.00029195,13]
[355176068,1740945066877,-151.0,0.00029195,7]
[355176069,1740945066886,-151.0,0.00029195,7]
[355176070,1740945066896,-151.0,0.00029195,7]
[355176071,1740945066906,-556.506965,0.00029195,7]
[355176072,1740945066916,-556.506965,0.00029195,7]
[355176073,1740945066927,-556.506965,0.00029195,7]
[355176074,1740945066936,-556.506965,0.00029195,7]
[355176075,1740945066945,-151.0,0.00029195,7]
[355176076,1740945066955,-151.0,0.00029195,7]
[355176077,1740945066964,-151.0,0.00029195,7]
[355176078,1740945066975,-151.0,0.00029195,7]
[355176079,1740945066985,-151.0,0.00029195,7]
[355176080,1740945066995,-250.860035,0.00029195,7]
[355176081,1740945067005,-1584.508964,0.00029195,7]
[355176082,1740945067014,-1584.508964,0.00029195,7]
[355176083,1740945067024,-1584.508964,0.00029195,7]
[355176084,1740945067034,-1584.508964,0.00029195,7]
[355176085,1740945067044,-1584.508964,0.00029195,7]
[355176086,1740945067053,-1584.508964,0.00029195,7]
[355176087,1740945067063,-300.238277,0.00029195,7]
[355176088,1740945067074,-300.238277,0.00029195,7]
[355176089,1740945067083,-300.238277,0.00029195,7]
[355176090,1740945067094,-300.238277,0.00029195,7]
[355176091,1740945067105,-300.238277,0.00029195,7]
[355176092,1740945067114,-300.238277,0.00029195,7]
[355176093,1740945067124,-191.279951,0.00029195,7]
[355176094,1740945067134,-191.279951,0.00029195,7]
[355176095,1740945067143,-191.279951,0.00029195,7]
[355176096,1740945067152,-2358.26132846,0.00029195,15]
[355176097,1740945067162,-2518746.93593476,0.00029196,45]
[355176098,1740945067369,-46870.00000002,0.00029196,45]
[355176099,1740945067384,-639.40962827,0.00029196,45]
[355176100,1740945067397,-2989.16000001,0.00029196,45]
[355176101,1740945067409,-258.89849998,0.00029196,45]
[355176102,1740945067575,-500.0,0.00024657,2]
[355176103,1740945067585,-500.0,0.00024931,2]
[355176104,1740945067595,-500.0,0.00025205,2]
[355176105,1740945067605,-500.0,0.00025479,2]
[355176106,1740945067617,-191.279951,0.00027397,7]
[355176107,1740945067627,-191.279951,0.000275,7]
[355176108,1740945067637,-191.279951,0.00028219,7]
[355176109,1740945067647,-191.279951,0.00028767,7]
[355176110,1740945067659,-191.279951,0.00029164,7]
[355176111,1740945067670,-191.279951,0.00029195,7]
[355176112,1740945067680,-191.279951,0.00029195,7]
[355176113,1740945067690,-191.279951,0.00029195,7]
[355176114,1740945067699,-90757.36563311,0.00029196,45]
[355176115,1740945067715,-44907.98947225,0.00029196,45]
[355176116,1740945067728,-763.11835339,0.00029196,45]
[355176117,1740945067942,-255.14,0.0002519,2]
[355176118,1740945068065,-476.742,0.0002519,2]
[355176119,1740945068075,-317.94888757,0.00025542,2]
[355176120,1740945068087,-151.0,0.00026201,7]
[355176121,1740945068097,-151.0,0.00026849,7]
[355176122,1740945068107,-151.0,0.000275,7]
[355176123,1740945068117,-151.0,0.00028219,7]
[355176124,1740945068128,-735.44107787,0.00029095,2]
[355176125,1740945068138,-7252.30629214,0.00029196,45]
[355176126,1740945068150,-334.35325342,0.00029196,45]
[355176127,1740945068162,-920.25094658,0.00029196,45]
[355176128,1740945068174,-439.83850191,0.00029196,45]
[355176129,1740945068187,-1558.94614062,0.00029196,45]
[355176130,1740945499500,2827.63723697,0.00025,120]
[355176131,1740945853704,-437.05954532,0.00016999,2]
[355176132,1740945853728,-300.0,0.00016999,2]
[355176133,1740945853753,-8712.94045468,0.00017,2]
[355176134,1740945904446,-10000.0,0.00017,2]
[355176135,1740945910867,-10000.0,0.00017,2]
[355176136,1740945916895,-10000.0,0.00017,2]
[355176137,1740945922630,-10000.0,0.00017,2]
[355176163,1740946231887,-300.0,0.00016999,2]
[355176166,1740946231898,-2566.74088929,0.00017,2]
[355176168,1740946231911,-377.6538,0.00017,2]
[355176169,1740946231923,-318.67720448,0.00017,2]
[355176170,1740946231942,-534.73599173,0.00017,2]
[355176171,1740946232002,-1455.15170862,0.00017,2]
[355176172,1740946232014,-17091.52890005,0.00017,2]
[355176173,1740946232051,-16183.25864442,0.00017,2]
[355176174,1740946232062,-468.53761822,0.00017,2]
[355176175,1740946232074,-1880.544,0.00017,2]
[355176205,1740946237630,-280.88767195,0.00017,2]
[355176206,1740946237642,-7053.23970044,0.00017,2]
[355176207,1740946237680,-427.09204245,0.00017,2]
[355176208,1740946237736,-393.69097478,0.00017,2]
[355176209,1740946237748,-15811.15781773,0.00017,2]
[355176210,1740946237791,-6053.15384358,0.00017,2]
[355176211,1740946237846,-46959.58724694,0.00017,2]
[355176212,1740946237858,-8730.20974938,0.00017,2]
[355176213,1740946237904,-3778.47399008,0.00017,2]
[355176214,1740946237916,-2099.864192,0.00017,2]
[355176215,1740946237952,-502.36352681,0.00017,2]
[355176216,1740946237964,-18382.2,0.00017,2]
[355176222,1740946239684,-296.204,0.00017,2]
[355176223,1740946239695,-439.101756,0.00017,2]
[355176224,1740946239748,-90797.59687837,0.00017,2]
[355176225,1740946239758,-420.0,0.00018567,2]
[355176226,1740946239767,-450.0,0.00018699,2]
[355176227,1740946239777,-201.34279478,0.000192,2]
[355176228,1740946239786,-201.34279471,0.00019279,2]
[355176229,1740946239795,-201.34279471,0.00019659,2]
[355176230,1740946239804,-201.34279471,0.00020038,2]
[355176231,1740946239815,-587.0,0.00020279,2]
[355176232,1740946239827,-201.34279471,0.00020417,2]
[355176233,1740946239837,-201.34279471,0.00020797,2]
[355176234,1740946239846,-201.34279471,0.00021176,2]
[355176235,1740946239856,-201.34279471,0.00021555,2]
[355176236,1740946239865,-1136.75,0.00021895,2]
[355176237,1740946239878,-201.34279471,0.00021934,3]
[355176238,1740946239888,-2502.0,0.000222,2]
[355176239,1740946239897,-201.34279471,0.00022314,3]
[355176240,1740946239908,-201.34279471,0.00022693,3]
[355176241,1740946239917,-201.34279471,0.00023072,3]
[355176242,1740946239927,-150.0,0.00023348,7]
[355176243,1740946239937,-2000.0,0.00023407,2]
[355176244,1740946239947,-23900.0,0.00023431,2]
[355176245,1740946239956,-201.34279471,0.00023452,3]
[355176246,1740946239965,-150.0,0.00023466,2]
[355176247,1740946239975,-200.0,0.00023788,2]
[355176248,1740946239985,-201.34279471,0.00023831,3]
[355176249,1740946239994,-1000.0,0.00023883,2]
[355176250,1740946240003,-1776.812,0.00023937,5]
[355176251,1740946240012,-1136.75,0.00024159,2]
[355176252,1740946240021,-201.34279471,0.0002421,3]
[355176253,1740946240031,-942.59905372,0.00024457,2]
[355176254,1740946240043,-1971.741075,0.00024457,2]
[355176255,1740946240054,-11711.98867128,0.00024457,2]
[355176256,1740946240064,-201.34279471,0.0002459,3]
[355176257,1740946240074,-244.77357429,0.00024657,2]
[355176258,1740946240084,-360.211487,0.00024657,2]
[355176259,1740946240093,-177.03634342,0.00024657,2]
[355176260,1740946240104,-198.134764,0.00024657,2]
[355176261,1740946240114,-500.0,0.00024657,2]
[355176262,1740946240127,-552.32,0.00024657,2]
[355176263,1740946240138,-500.0,0.00024657,2]
[355176264,1740946240148,-492.89606582,0.00024657,2]
[355176265,1740946240158,-500.0,0.00024657,2]
[355176266,1740946240168,-500.0,0.00024657,2]
[355176267,1740946240178,-500.0,0.00024657,2]
[355176268,1740946240188,-500.0,0.00024657,2]
[355176269,1740946240198,-500.0,0.00024657,2]
[355176270,1740946240209,-500.0,0.00024657,2]
[355176271,1740946240219,-500.0,0.00024657,2]
[355176272,1740946240229,-500.0,0.00024657,2]
[355176273,1740946240240,-510.05,0.00024657,2]
[355176274,1740946240250,-500.0,0.00024657,2]
[355176275,1740946240259,-500.0,0.00024657,2]
[355176276,1740946240269,-590.0,0.00024657,2]
[355176277,1740946240279,-500.0,0.00024657,2]
[355176278,1740946240289,-500.0,0.00024657,2]
[355176279,1740946240299,-500.0,0.00024657,2]
[355176280,1740946240308,-647.11,0.00024657,2]
[355176281,1740946240318,-500.0,0.00024657,2]
[355176282,1740946240328,-500.0,0.00024657,2]
[355176283,1740946240338,-500.0,0.00024657,2]
[355176284,1740946240348,-500.0,0.00024657,2]
[355176285,1740946240358,-500.0,0.00024657,2]
[355176286,1740946240368,-500.0,0.00024657,2]
[355176287,1740946240380,-500.0,0.00024657,2]
[355176288,1740946240389,-500.0,0.00024657,2]
[355176289,1740946240399,-500.0,0.00024657,2]
[355176290,1740946240409,-500.0,0.00024657,2]
[355176291,1740946240418,-500.0,0.00024657,2]
[355176292,1740946240428,-500.0,0.00024657,2]
[355176293,1740946240438,-500.0,0.00024657,2]
[355176294,1740946240447,-500.0,0.00024657,2]
[355176295,1740946240458,-500.0,0.00024657,2]
[355176296,1740946240467,-500.0,0.00024657,2]
[355176297,1740946240477,-500.0,0.00024657,2]
[355176298,1740946240487,-246.03,0.00024657,2]
[355176299,1740946240497,-500.0,0.00024657,2]
[355176300,1740946240506,-500.0,0.00024657,2]
[355176301,1740946240516,-500.0,0.00024657,2]
[355176302,1740946240526,-500.0,0.00024657,2]
[355176303,1740946240535,-500.0,0.00024657,2]
[355176304,1740946240544,-500.0,0.00024657,2]
[355176305,1740946240554,-500.0,0.00024657,2]
[355176306,1740946240563,-515.15821242,0.00024657,2]
[355176307,1740946240572,-500.0,0.00024657,2]
[355176308,1740946240581,-500.0,0.00024657,2]
[355176309,1740946240591,-500.0,0.00024657,2]
[355176310,1740946240600,-500.0,0.00024657,2]
[355176311,1740946240609,-500.0,0.00024657,2]
[355176312,1740946240619,-500.0,0.00024657,2]
[355176313,1740946240629,-500.0,0.00024657,2]
[355176314,1740946240639,-500.0,0.00024657,2]
[355176315,1740946240648,-500.0,0.00024657,2]
[355176316,1740946240657,-500.0,0.00024657,2]
[355176317,1740946240667,-500.0,0.00024657,2]
[355176318,1740946240676,-500.0,0.00024657,2]
[355176319,1740946240686,-500.0,0.00024657,2]
[355176320,1740946240696,-500.0,0.00024657,2]
[355176321,1740946240705,-839.35,0.00024657,2]
[355176322,1740946240714,-500.0,0.00024657,2]
[355176323,1740946240723,-500.0,0.00024657,2]
[355176324,1740946240733,-500.0,0.00024657,2]
[355176325,1740946240746,-500.0,0.00024657,2]
[355176326,1740946240755,-500.0,0.00024657,2]
[355176327,1740946240765,-500.0,0.00024657,2]
[355176328,1740946240775,-187.03364503,0.00024657,2]
[355176329,1740946240788,-312.96635497,0.00024657,2]
[355176330,1740946240798,-23.75722148,0.00024657,2]
[355176331,1740946242120,-371.6584785,0.00024657,2]
[355176381,1740946242845,-104.58430002,0.00024657,2]
[355176382,1740946242856,-500.0,0.00024657,2]
[355176383,1740946242868,-500.0,0.00024657,2]
[355176384,1740946242879,-500.0,0.00024657,2]
[355176385,1740946242889,-500.0,0.00024657,2]
[355176386,1740946242900,-500.0,0.00024657,2]
[355176387,1740946242910,-1636.36,0.00024657,2]
[355176388,1740946242920,-500.0,0.00024657,2]
[355176389,1740946242931,-500.0,0.00024657,2]
[355176390,1740946242941,-220.22708259,0.00024657,2]
[355176391,1740946242950,-500.0,0.00024657,2]
[355176392,1740946242960,-500.0,0.00024657,2]
[355176393,1740946242969,-500.0,0.00024657,2]
[355176394,1740946242979,-500.0,0.00024657,2]
[355176395,1740946242989,-500.0,0.00024657,2]
[355176396,1740946242999,-3927.0,0.00024713,2]
[355176397,1740946243008,-150.0,0.00024713,2]
[355176398,1740946243017,-360.211487,0.00024931,2]
[355176399,1740946243027,-198.134764,0.00024931,2]
[355176400,1740946243036,-500.0,0.00024931,2]
[355176401,1740946243045,-500.0,0.00024931,2]
[355176402,1740946243055,-500.0,0.00024931,2]
[355176403,1740946243066,-500.0,0.00024931,2]
[355176404,1740946243075,-500.0,0.00024931,2]
[355176405,1740946243084,-500.0,0.00024931,2]
[355176406,1740946243094,-500.0,0.00024931,2]
[355176407,1740946243104,-590.0,0.00024931,2]
[355176408,1740946243113,-500.0,0.00024931,2]
[355176409,1740946243125,-500.0,0.00024931,2]
[355176410,1740946243134,-500.0,0.00024931,2]
[355176411,1740946243144,-500.0,0.00024931,2]
[355176412,1740946243154,-500.0,0.00024931,2]
[355176413,1740946243164,-500.0,0.00024931,2]
[355176414,1740946243173,-500.0,0.00024931,2]
[355176415,1740946243183,-500.0,0.00024931,2]
[355176416,1740946243193,-500.0,0.00024931,2]
[355176417,1740946243203,-500.0,0.00024931,2]
[355176418,1740946243213,-500.0,0.00024931,2]
[355176419,1740946243223,-500.0,0.00024931,2]
[355176420,1740946243232,-500.0,0.00024931,2]
[355176421,1740946243242,-500.0,0.00024931,2]
[355176422,1740946243252,-500.0,0.00024931,2]
[355176423,1740946243262,-500.0,0.00024931,2]
[355176425,1740946243272,-500.0,0.00024931,2]
[355176427,1740946243282,-500.0,0.00024931,2]
[355176428,1740946243290,-542.96063509,0.00024931,2]
[355176430,1740946243300,-500.0,0.00024931,2]
[355176432,1740946243309,-500.0,0.00024931,2]
[355176434,1740946243319,-500.0,0.00024931,2]
[355176436,1740946243329,-500.0,0.00024931,2]
[355176437,1740946243338,-504.18430578,0.00024931,2]
[355176438,1740946243347,-500.0,0.00024931,2]
[355176439,1740946243357,-500.0,0.00024931,2]
[355176440,1740946243367,-500.0,0.00024931,2]
[355176441,1740946243376,-500.0,0.00024931,2]
[355176442,1740946243385,-500.0,0.00024931,2]
[355176443,1740946243395,-500.0,0.00024931,2]
[355176444,1740946243405,-299.905239,0.00024931,2]
[355176445,1740946243414,-500.0,0.00024931,2]
[355176446,1740946243424,-500.0,0.00024931,2]
[355176447,1740946243433,-500.0,0.00024931,2]
[355176448,1740946243443,-500.0,0.00024931,2]
[355176449,1740946243453,-500.0,0.00024931,2]
[355176450,1740946243462,-839.35,0.00024931,2]
[355176451,1740946243472,-500.0,0.00024931,2]
[355176452,1740946243481,-500.0,0.00024931,2]
[355176453,1740946243491,-500.0,0.00024931,2]
[355176454,1740946243501,-513.04260839,0.00024931,2]
[355176455,1740946243511,-500.0,0.00024931,2]
[355176456,1740946243520,-500.0,0.00024931,2]
[355176457,1740946243529,-500.0,0.00024931,2]
[355176458,1740946243539,-500.0,0.00024931,2]
[355176459,1740946243549,-500.0,0.00024931,2]
[355176460,1740946243559,-500.0,0.00024931,2]
[355176461,1740946243568,-500.0,0.00024931,2]
[355176462,1740946243577,-500.0,0.00024931,2]
[355176463,1740946243587,-500.0,0.00024931,2]
[355176464,1740946243596,-1636.36,0.00024931,2]
[355176465,1740946243606,-500.0,0.00024931,2]
[355176466,1740946243616,-500.0,0.00024931,2]
[355176467,1740946243626,-500.0,0.00024931,2]
[355176468,1740946243636,-500.0,0.00024931,2]
[355176469,1740946243646,-500.0,0.00024931,2]
[355176470,1740946243656,-500.0,0.00024931,2]
[355176471,1740946243666,-500.0,0.00024931,2]
[355176472,1740946243676,-29.45103667,0.00024937,2]
[355176479,1740946245742,-179.20750057,0.00024937,2]
[355176480,1740946245753,-201.34279471,0.00024969,4]
[355176481,1740946245763,-360.211487,0.00025205,2]
[355176482,1740946245773,-198.134764,0.00025205,2]
[355176483,1740946245783,-229.88974029,0.00025205,2]
[355176484,1740946245793,-500.0,0.00025205,2]
[355176485,1740946245803,-500.0,0.00025205,2]
[355176486,1740946245814,-500.0,0.00025205,2]
[355176487,1740946245823,-500.0,0.00025205,2]
[355176488,1740946245838,-500.0,0.00025205,2]
[355176489,1740946245848,-500.0,0.00025205,2]
[355176490,1740946245860,-590.0,0.00025205,2]
[355176491,1740946245870,-500.0,0.00025205,2]
[355176492,1740946245881,-500.0,0.00025205,2]
[355176493,1740946245891,-500.0,0.00025205,2]
[355176494,1740946245901,-380.09,0.00025205,2]
[355176495,1740946245912,-500.0,0.00025205,2]
[355176496,1740946245922,-500.0,0.00025205,2]
[355176497,1740946245932,-500.0,0.00025205,2]
[355176498,1740946245942,-500.0,0.00025205,2]
[355176499,1740946245952,-500.0,0.00025205,2]
[355176500,1740946245962,-500.0,0.00025205,2]
[355176501,1740946245972,-500.0,0.00025205,2]
[355176502,1740946245982,-500.0,0.00025205,2]
[355176503,1740946245992,-500.0,0.00025205,2]
[355176504,1740946246002,-500.0,0.00025205,2]
[355176505,1740946246012,-500.0,0.00025205,2]
[355176506,1740946246022,-500.0,0.00025205,2]
[355176507,1740946246031,-500.0,0.00025205,2]
[355176508,1740946246042,-629.04725442,0.00025205,2]
[355176509,1740946246051,-500.0,0.00025205,2]
[355176510,1740946246061,-500.0,0.00025205,2]
[355176511,1740946246071,-500.0,0.00025205,2]
[355176512,1740946246080,-500.0,0.00025205,2]
[355176513,1740946246091,-500.0,0.00025205,2]
[355176514,1740946246101,-500.0,0.00025205,2]
[355176517,1740946246111,-500.0,0.00025205,2]
[355176520,1740946246121,-500.0,0.00025205,2]
[355176523,1740946246132,-500.0,0.00025205,2]
[355176526,1740946246142,-500.0,0.00025205,2]
[355176528,1740946246152,-500.0,0.00025205,2]
[355176530,1740946246162,-500.0,0.00025205,2]
[355176532,1740946246171,-500.0,0.00025205,2]
[355176534,1740946246182,-500.0,0.00025205,2]
[355176536,1740946246192,-500.0,0.00025205,2]
[355176538,1740946246201,-839.35,0.00025205,2]
[355176540,1740946246211,-500.0,0.00025205,2]
[355176542,1740946246221,-500.0,0.00025205,2]
[355176543,1740946246232,-500.0,0.00025205,2]
[355176544,1740946246242,-240.32431938,0.00025205,2]
[355176545,1740946246252,-500.0,0.00025205,2]
[355176546,1740946246262,-500.0,0.00025205,2]
[355176547,1740946246272,-226.61038053,0.00025205,2]
[355176548,1740946246282,-396.85096465,0.00025205,2]
[355176549,1740946246295,-103.14903535,0.00025205,2]
[355176550,1740946246304,-500.0,0.00025205,2]
[355176551,1740946246314,-500.0,0.00025205,2]
[355176552,1740946246324,-500.0,0.00025205,2]
[355176553,1740946246334,-500.0,0.00025205,2]
[355176554,1740946246344,-1636.36,0.00025205,2]
[355176555,1740946246354,-500.0,0.00025205,2]